Cogmind - Beta 13 *** ADVENTURER MODE // 2024.04.05 @ 10:26:13 Player: Red_Zig Result: Destroyed by D-53 Grenadier with Mini Grenade Launcher Performance ------------- Evolutions (0) 0 Regions Visited (2) 400 Robots Destroyed (28) 140 Value Destroyed (619) 619 Prototype IDs (0) 0 Alien Tech Used (0) 0 Bonus (-208) -208 TOTAL SCORE: 951 Bonus ------- Follower Combat Kills 7 Friendly Fire -215 Cogmind --------- Core Integrity 0/250 Matter 239/300 Energy 99/100 System Corruption 0% Temperature Cool (0) Movement Core (50) Location -10/Mines Parts ------- > --- POWER (1) -------- (None) > --- PROPULSION (2) --- (None) > --- UTILITY (2) ------ (None) > --- WEAPON (2) ------- (None) > --- INVENTORY (5) ---- Reinforced Ion Engine Flight Unit Flight Unit Large Storage Unit Medium Matter Pod (100) Peak State ------------ > --- POWER ------------ Reinforced Ion Engine > --- PROPULSION ------- Light Treads Light Treads > --- UTILITY ---------- Medium Storage Unit Terrain Scanner > --- WEAPON ----------- Assault Rifle Assault Rifle > --- INVENTORY -------- Reinforced Ion Engine Flight Unit Improved Heat Sink Large Storage Unit Medium Matter Pod Signal Interpreter Utility Shielding Grenade Launcher [Rating: 9] Favorites ----------- Power Reinforced Ion Engine Engine Reinforced Ion Engine Propulsion Light Treads Treads Light Treads Flight Unit Flight Unit Utility Medium Storage Unit Device Terrain Scanner Storage Medium Storage Unit Processor Signal Interpreter Protection Utility Shielding Weapon Assault Rifle Energy Gun EM Pulse Gun Ballistic Gun Assault Rifle Launcher Grenade Launcher Special Weapon Mining Laser Build | -11 -10 -10 ------- Run | Yrd Mat Min Slots Evolved . | . . . Power . | . . . Propulsion . | . . . Utility . | . . . Weapon . | . . . Parts Attached 21 | 6 5 10 Power 3 | 1 2 . Engine 3 | 1 2 . Core . | . . . Reactor . | . . . Propulsion 5 | 2 . 3 Treads 3 | 2 . 1 Leg . | . . . Wheel . | . . . Hover . | . . . Flight 2 | . . 2 Utility 7 | 1 2 4 Device 2 | . 1 1 Storage 3 | 1 1 1 Processor 1 | . . 1 Hackware . | . . . Protection 1 | . . 1 Artifact . | . . . Weapon 6 | 2 1 3 Energy Gun 1 | 1 . . Energy Cannon . | . . . Ballistic Gun 3 | 1 1 1 Ballistic Cannon . | . . . Launcher 1 | . . 1 Special Weapon 1 | . . 1 Impact Weapon . | . . . Slashing Weapon . | . . . Piercing Weapon . | . . . Special Melee Weapon . | . . . Unidentified Prototypes . | . . . Parts Lost 8 | . . 8 Power . | . . . Propulsion 4 | . . 4 Utility 1 | . . 1 Weapon 3 | . . 3 Highest Loss Streak 6 | . . 6 To Critical Strikes . | . . . Average Slot Usage (%) 85 | . 79 95 Engine 13 | . 13 13 Treads 22 | . 19 26 Device 6 | . 3 11 Storage 13 | . 14 13 Energy Gun 2 | . 3 . Ballistic Gun 24 | . 24 24 Naked Turns . | . . . Heaviest Build 36 | 12 25 36 Greatest Support 40 | 40 40 40 Greatest Overweight (x) 1 | . 1 1 Average Overweight (x) . | . . . Largest Inventory Capacity 15 | 8 10 15 Average Capacity 11 | 7 9 14 Most Carried 13 | 5 10 13 Average Carried 7 | 1 7 9 Final Capacity 10 | 8 10 5 Final Carried 10 | 1 10 5 Class Distribution -------------------- 100% | Mutant Dominant Class ---------------- Mutant | -10/Materials Mutant | -10/Mines Resources | -11 -10 -10 ----------- Run | Yrd Mat Min Matter Collected 755 | 239 316 200 Remotely . | . . . Salvage Created 906 | . 592 314 Parts 68 | . 46 22 Haulers Intercepted . | . . . Recyclers Shooed 1 | . . 1 Parts Field Recycled . | . . . Retrieved Matter . | . . . Parts Self-Destructed . | . . . Prevented . | . . . Kills | -11 -10 -10 ------- Run | Yrd Mat Min Combat Hostiles Destroyed 37 | . 11 26 Guns 17 | . 8 9 Cannons 1 | . . 1 AOE 19 | . 3 16 Classes Destroyed 8 | . 4 4 Builder 2 | . 2 . Tunneler 1 | . . 1 Recycler 1 | . 1 . Watcher 3 | . 3 . Swarmer 8 | . . 8 Grunt 11 | . 11 . Sentry 1 | . . 1 Assembled 17 | . . 17 Thug 1 | . . 1 Best Kill Streak 17 | . 6 17 Combat Bots Only 16 | . 5 16 Max Kills in Single Turn 6 | . 2 6 Gunslinging 1 | . . 1 Exploded 5 | . 2 5 Melee . | . . . Uniques/NPCs Destroyed . | . . . Combat | -11 -10 -10 -------- Run | Yrd Mat Min Hostile Shots Fired 132 | . 30 102 Missed 36 | . 11 25 Damage Taken 968 | . 196 772 Core 253 | . 44 209 Absorbed by Shields . | . . . Ignored by Resistances 299 | . 64 235 Core Remaining (%) 100 | 100 . . Volleys Fired 62 | . 27 35 Largest 2 | . 2 2 Hottest 120 | . 60 120 Shots Fired 107 | . 54 53 Gun 98 | . 54 44 Cannon . | . . . Launcher 8 | . . 8 Special 1 | . . 1 Kinetic 93 | . 49 44 Thermal 1 | . . 1 Explosive 8 | . . 8 Electromagnetic 5 | . 5 . Robot Hit Streak 14 | . 14 14 Robot Miss Streak 3 | . 3 2 Penetration Max . | . . . Secondary Targets 7 | . 3 4 Max Gunslinging Chain 1 | . 1 1 Shots Hit Robots 77 | . 43 34 Core Hits 80 | . 25 55 Critical Kills . | . . . Critical Parts Destroyed . | . . . Critical Strikes . | . . . Melee Attacks . | . . . Impact . | . . . Slashing . | . . . Piercing . | . . . Sneak Attacks . | . . . Combat Hostiles . | . . . Follow-up Attacks . | . . . Damage Inflicted 2219 | . 848 1371 Guns 916 | . 552 364 Cannons . | . . . Explosions 1257 | . 290 967 Melee . | . . . Ramming 22 | . 6 16 Kinetic 834 | . 470 364 Thermal 314 | . 290 24 Explosive 967 | . . 967 Electromagnetic 82 | . 82 . Impact . | . . . Slashing . | . . . Piercing . | . . . Highest Corruption . | . . . Average Corruption . | . . . Corruption Purged . | . . . Corruption Blocked . | . . . Overload Shots . | . . . Overflow Damage 3 | . . 3 Projectiles . | . . . Explosions 3 | . . 3 Melee . | . . . Knockbacks . | . . . Impact . | . . . Kinetic . | . . . Secondary . | . . . Self-Inflicted Damage 65 | . 20 45 Shots 4 | . 2 2 Rammed 6 | . 1 5 Targets Rammed 7 | . 2 5 Kicked . | . . . Crushed 1 | . 1 . Highest Temperature 81 | . 81 58 Average Temperature 24 | . 23 27 Received Heat Transfer 267 | . 132 135 Siege Activations . | . . . Robots Corrupted . | . . . Combat Hostiles . | . . . Parts Fried . | . . . Impact Corruptions . | . . . Robots Melted . | . . . Combat Hostiles . | . . . Parts Melted . | . . . Heat Transferred 500 | . 450 50 Parts Sabotaged . | . . . Parts Stolen . | . . . Parts Stripped . | . . . Power Chain Reactions 4 | . 4 . Alert | -11 -10 -10 ------- Run | Yrd Mat Min Peak Influence 237 | . 237 159 Initial . | . . . Average 56 | . 48 75 Maximum Alert Level 1 | . 1 . Low Security (%) 98 | 100 97 100 Level 1 1 | . 2 . Level 2 . | . . . Level 3 . | . . . Level 4 . | . . . Level 5 . | . . . High Security . | . . . Max Security . | . . . Squads Dispatched 2 | . 2 . Investigation 2 | . 2 . Extermination . | . . . Reinforcement . | . . . Assault . | . . . Garrison . | . . . Intercept . | . . . Searches Triggered . | . . . Construction Impeded . | . . . Haulers Reinforced . | . . . Active Scanning Responses . | . . . Cargo Convoy Interrupts . | . . . Stealth | -11 -10 -10 --------- Run | Yrd Mat Min Distress Signals 1 | . 1 . Communications Jammed . | . . . Distress Signals . | . . . Times Spotted 46 | . 14 32 Peak Tracking Total 18 | . 4 18 Tactical Retreats . | . . . Traps | -11 -10 -10 ------- Run | Yrd Mat Min Traps Triggered 3 | . 3 . Indirectly . | . . . Trap Hack Attempts . | . . . Triggered . | . . . Disarmed . | . . . Reprogrammed . | . . . Reused . | . . . Traps Extracted . | . . . Installed . | . . . Triggered . | . . . Machines | -11 -10 -10 ---------- Run | Yrd Mat Min Machines Disabled 1 | . 1 . Max in Single Turn 1 | . 1 . Machines Repaired . | . . . Machines Dismantled . | . . . Machines Sabotaged . | . . . Overloaded Fab Kills . | . . . Hacking | -11 -10 -10 --------- Run | Yrd Mat Min Machines Accessed . | . . . Terminals . | . . . Fabricators . | . . . Repair Stations . | . . . Recycling Units . | . . . Scanalyzers . | . . . Garrison Access . | . . . Total Hacks . | . . . Successful . | . . . Failed . | . . . Catastrophic . | . . . Database Lockouts . | . . . Manual . | . . . Terminals . | . . . Fabricators . | . . . Repair Stations . | . . . Recycling Units . | . . . Scanalyzers . | . . . Garrison Access . | . . . Terminal Hacks . | . . . Fabricator Hacks . | . . . Repair Station Hacks . | . . . Recycling Unit Hacks . | . . . Scanalyzer . | . . . Garrison Access Hacks . | . . . Unauthorized Hacks . | . . . Terminals . | . . . Fabricators . | . . . Repair Stations . | . . . Recycling Units . | . . . Scanalyzers . | . . . Garrison Access . | . . . Data Cores Recovered . | . . . Used . | . . . Hacking Detections . | . . . Full Trace Events . | . . . Feedback Events . | . . . Feedback Blocked . | . . . Robot Schematics Acquired . | . . . Robots Built . | . . . Authchips . | . . . Time . | . . . Total Robot Build Rating . | . . . Part Schematics Acquired . | . . . Parts Built . | . . . Authchips . | . . . Time . | . . . Total Part Build Rating . | . . . Parts Repaired . | . . . Time . | . . . Parts Recycled . | . . . Recycled Matter . | . . . Retrieved Matter . | . . . Retrieved Components . | . . . Parts Scanalyzed . | . . . Part Schematics Acquired . | . . . Parts Damaged . | . . . Bothacking | -11 -10 -10 ------------ Run | Yrd Mat Min Used RIF Installer . | . . . Robots Hacked . | . . . Non-combat . | . . . Combat . | . . . Robot Hacks Applied . | . . . Relay Couplers Released . | . . . Fabnet Peak Effective % . | . . . Robots Rewired . | . . . Allies Hacked . | . . . Hacks Repelled . | . . . Allies | -11 -10 -10 -------- Run | Yrd Mat Min Total Allies 3 | . . 3 Largest Group 3 | . . 3 Highest-Rated Group 81 | . . 81 Highest-Rated Ally 31 | . . 31 Total Orders . | . . . Ally Attacks 13 | . . 13 Total Damage 128 | . . 128 Kills 2 | . . 2 Allies Corrupted . | . . . Allies Melted . | . . . Intel | -11 -10 -10 ------- Run | Yrd Mat Min Robot Analysis Total . | . . . Derelict Logs Recovered 1 | . . 1 Drone Launches . | . . . Drone Recoveries . | . . . Exploration | -11 -10 -10 ------------- Run | Yrd Mat Min Turns Passed 2551 | 55 1627 869 Spaces Moved 1247 | 30 738 479 Core 29 | 9 . 20 Treads 1218 | 21 738 459 Legs . | . . . Wheels . | . . . Hover . | . . . Flight . | . . . Fastest Speed 50 | 50 160 50 Average Speed 182 | 127 201 155 Slowest Speed 240 | 160 240 240 Overloaded Moves . | . . . Propulsion Burnouts . | . . . Robots Hopped . | . . . Cave-ins Triggered . | . . . Exploration Rate (%) 57 | 3 99 70 Regions Visited 2 Branch Regions 1 Pre-discovered Areas . | . . . Known Exits Taken . | . . . Unknown Exits Taken 2 | 1 1 . Scrap Searched . | . . . Spaces Dug . | . . . Terrain Destroyed 52 | . 9 43 Melee . | . . . Projectile . | . . . AOE 52 | . 9 43 Terrain Rammed . | . . . Walls Destroyed . | . . . Machines Disabled . | . . . Actions | -11 -10 -10 --------- Run | Yrd Mat Min Total 1412 | 47 820 545 Wait 40 | 5 32 3 Move 1245 | 29 737 479 Hop . | . . . Pick Up 28 | 7 14 7 Fast Attach . | . . . Attach 15 | 6 2 7 Detach . | . . . Swap 6 | . 3 3 Drop 9 | . 3 6 Fire 62 | . 27 35 Melee . | . . . Ram . | . . . Kick . | . . . Crush 7 | . 2 5 Escape Stasis . | . . . Rewire . | . . . Trap . | . . . Miscellaneous . | . . . Route ------- -11/Scrapyard -10/Materials (discovered 5 exits: [*Mat x3] / [*Min x2]) -10/Mines (discovered 2 exits: [*Mat x2]) History --------- Turn | Location | Event 11 | -11/Scrapyard | Discovered new exit (range 15) 56 | -11/Scrapyard | Entered Materials 136 | -10/Materials | Discovered new exit (range 6) 304 | -10/Materials | Build established: Mutant 398 | -10/Materials | Discovered new exit (range 14) 401 | -10/Materials | Discovered new exit (range 13) 760 | -10/Materials | Discovered new exit (range 5) 1006 | -10/Materials | Discovered new exit (range 8) 1683 | -10/Materials | Entered Mines 1735 | -10/Mines | Found a hidden stash of uninstalled traps 1777 | -10/Mines | Discovered new exit (range 16) 2152 | -10/Mines | Discovered new exit (range 4) 2362 | -10/Mines | Learned 2 Materials zone layouts 2365 | -10/Mines | Received a Mining Laser from a helpful Derelict 2426 | -10/Mines | Assembled infested the area 2452 | -10/Mines | Core integrity fell below 50% 2473 | -10/Mines | Destroyed 16 combat bots 2535 | -10/Mines | Core integrity fell below 20% 2552 | -10/Mines | Destroyed by D-53 Grenadier with Mini Grenade Launcher Last Messages --------------- Acquired 4 matter. Acquired 29 matter. The unstable cave ceiling collapses. Imp. Terrain Scanner crushed. The unstable cave ceiling collapses. as-34060 destroyed. Acquired 9 matter. Lgt. Treads destroyed. Grenade Launcher destroyed. Lgt. Treads destroyed. Y-45 Defender destroyed. Assault Rifle destroyed. Dropped Mining Laser. Dropped Utility Shielding. Discarded Signal Interpreter. Dropped Rnf. Ion Engine. Flight Unit destroyed. Acquired 36 matter. K-01 Serf collects debris. Flight Unit destroyed. Map ----- +----------------------------------------------------+ | ????# ##??### #??# #### % #?? | | #???# ##???# #?## ### ##?? | | ????# #???## #??############### ###??? | | ????## #?#??# ##???#??????????## ###???? | | ?????## ##????# ##??????????????#####?????? | | ??????## ##?#??### ##?????????#?????#???????? | | ???????####???????# ###?#??????#?????????#??? | | ???????????????##?## | ###????#?????#????????? | | ????????????#??????# %= #??#??????##????????#?? | | ???#???????????????### #???#?????????????????? | | ????#??????????????## % ##?????????????????????? | | ???????????????????# ##????????????????#????? | | ????????????????#??# k #?????????????#???????? | | ??????????? ?#??# # ##????#???????????????? | | ????????? $ ### # #????????#???????????? | | ????????? ### #????????????????????? | | ?????????# % ###??????????????????? | | ?????????# ## #????######????????? | | ?????????? ???# #???##"!!"##???????? | | ?????????????????# #???#""!!""#???????? | | ?????????????????# kd ##???# #???????? | | ?????????????????# d ### #????## ##???????? | | ??????????????????? ??# #????###//###???????? | | ???????????????????## ### #????#= | #???????? | | ???????????????????# * #????#![= #####???? | | ???????????????????#< @ # ######!=* #???? | | ???????????????????# # # #???? | | ???????????????????# #???? | | ???????????????????## # # # #???? | | ????????????????????### ########## #???? | | ??????????????????????###?????????# #???? | | ??????????????????????????????????# #???? | | ??????????????????????????????????# #???? | | ??????????????????????????????????# #???? | | ??????????????????????????????????############???? | | ?????????????????????????????????????????????????? | | ?????????????????????????????????????????????????? | | ?????????????????????????????????????????????????? | | | | | | | | | | | | | | | | | | | | | | | | | +----------------------------------------------------+ Best States ------------- Heat Dissipation 25 Energy Generation 12 Energy Capacity 265 Matter Stores 300 Matter Capacity 300 Sight Range 16 Terrain Scan Range 14 Terrain Scan Density 10 Resistance: KI 20 Resistance: TH 20 Resistance: EX 20 Resistance: EM 20 Resistance: I 20 Resistance: S 20 Resistance: P 20 Utility Shielding 33 Evasion (%) 50 Recoil Reduction 2 Offensive Hacking 10 Item Schematics ----------------- None Robot Schematics ------------------ None Fabricated ------------ Nothing Alien Tech Used ----------------- None Achievements -------------- Quick And Dirty Challenges ------------ None Game ------ Seed HardlightAdvancedPick Manual? 0 Play Time 00:20:30 Cumulative 10.4 hours Start 2024.04.05 @ 10:07:40 End 2024.04.05 @ 10:26:13 Sessions 1 Manual Loads 0 Difficulty Adventurer Special Mode None Game No. 10 Rogue 0 Adventurer 10 Explorer 0 Win Type - Total 0 Types 0/0/0/0/0/0/0/0/0 Lore% 11 Gallery% 17 Achievement% 17 Wizard Run 0 Options --------- Layout 1 ASCII 0 Keyboard 0 Movement Mouse Keybinds 0 Fullscreen 1 Font 24/Crisp Map View 50x35 Zoom Use 3% Tactical HUD 0 Map Filters NONE Filters NONE Steam 1 RUN: 6dda6f9b-80fb-4434-95c1-8ebc473dce06